fUSD/lending_fUSD_20250105
["ID","MTS","AMOUNT","RATE_DAILY","PERIOD"]
[347796439,1736112635242,-500.0,0.0001027,2]
[347796440,1736112635252,-534.58,0.0001027,2]
[347796441,1736112635261,-500.0,0.0001027,2]
[347796442,1736112635271,-500.0,0.0001027,2]
[347796443,1736112635284,-500.0,0.0001027,2]
[347796444,1736112635293,-500.0,0.0001027,2]
[347796445,1736112635302,-500.0,0.0001027,2]
[347796446,1736112635312,-380.32,0.0001027,2]
[347796447,1736112635321,-763.05,0.0001027,2]
[347796448,1736112635331,-500.0,0.0001027,2]
[347796449,1736112635341,-945.9,0.0001027,2]
[347796450,1736112635351,-500.0,0.0001027,2]
[347796451,1736112635360,-500.0,0.0001027,2]
[347796452,1736112635369,-500.0,0.0001027,2]
[347796453,1736112635379,-258.41,0.0001027,2]
[347796454,1736112635388,-537.91,0.0001027,2]
[347796455,1736112635398,-500.0,0.0001027,2]
[347796456,1736112635408,-1010.82,0.0001027,2]
[347796457,1736112635417,-500.0,0.0001027,2]
[347796458,1736112635427,-150.78,0.00010271,2]
[347796459,1736112635436,-527.07015604,0.00010271,2]
[347796460,1736112635446,-500.0,0.00010271,2]
[347796461,1736112635456,-500.0,0.00010271,2]
[347796462,1736112635466,-500.0,0.00010271,2]
[347796463,1736112635475,-500.0,0.00010271,2]
[347796464,1736112635485,-500.0,0.00010271,2]
[347796465,1736112635495,-500.0,0.00010271,2]
[347796466,1736112635505,-732.02,0.00010271,2]
[347796467,1736112635514,-500.0,0.00010271,2]
[347796468,1736112635524,-500.0,0.00010271,2]
[347796469,1736112635538,-527.13,0.00010271,2]
[347796470,1736112635548,-753.31,0.00010271,2]
[347796471,1736112635557,-500.0,0.00010271,2]
[347796472,1736112635567,-629.8,0.00010271,2]
[347796473,1736112635575,-500.0,0.00010271,2]
[347796474,1736112635585,-500.0,0.00010272,2]
[347796475,1736112635595,-500.0,0.00010272,2]
[347796476,1736112635605,-500.0,0.00010273,2]
[347796477,1736112635619,-543.87,0.00010273,2]
[347796478,1736112635628,-500.0,0.00010273,2]
[347796479,1736112635638,-500.0,0.00010273,2]
[347796480,1736112635648,-500.0,0.00010273,2]
[347796481,1736112635658,-500.0,0.00010273,2]
[347796482,1736112635668,-500.0,0.00010273,2]
[347796483,1736112635678,-550.99,0.00010273,2]
[347796484,1736112635687,-500.0,0.00010273,2]
[347796485,1736112635696,-500.0,0.00010273,2]
[347796486,1736112635706,-500.0,0.00010273,2]
[347796487,1736112635716,-500.0,0.00010273,2]
[347796488,1736112635726,-500.0,0.00010273,2]
[347796489,1736112635735,-500.0,0.00010273,2]
[347796490,1736112635744,-500.0,0.00010273,2]
[347796491,1736112635753,-500.0,0.00010273,2]
[347796492,1736112635762,-500.0,0.00010273,2]
[347796493,1736112635772,-500.0,0.00010273,2]
[347796494,1736112635785,-208.28,0.00010273,2]
[347796495,1736112635795,-500.0,0.00010273,2]
[347796496,1736112635804,-500.0,0.00010273,2]
[347796497,1736112635814,-1239.66,0.00010273,2]
[347796498,1736112635823,-500.0,0.00010273,2]
[347796499,1736112635833,-500.0,0.00010273,2]
[347796500,1736112635843,-500.0,0.00010273,2]
[347796501,1736112635852,-344.16455365,0.00010273,2]
[347796502,1736112635861,-341.08,0.00010273,2]
[347796503,1736112635871,-530.23,0.00010273,2]
[347796504,1736112635880,-500.0,0.00010273,2]
[347796505,1736112635889,-500.0,0.00010273,2]
[347796506,1736112635899,-500.0,0.00010273,2]
[347796507,1736112635908,-366.0,0.00010273,2]
[347796508,1736112635917,-500.0,0.00010273,2]
[347796509,1736112635927,-500.0,0.00010273,2]
[347796510,1736112635936,-174.24,0.00010273,2]
[347796511,1736112635946,-2000.0,0.00010303,2]
[347796512,1736112635955,-200.0,0.00010303,2]
[347796513,1736112635964,-347.15733575,0.00010348,2]
[347796514,1736112635974,-1000.0,0.0001037,2]
[347796515,1736112635983,-1291.46,0.00010426,2]
[347796516,1736112635992,-150.19776355,0.00010445,2]
[347796517,1736112636002,-347.15733575,0.00010476,2]
[347796518,1736112636011,-59855.05214393,0.000105,2]
[347796519,1736112636037,-486.87103,0.000105,2]
[347796520,1736112636054,-112398.80133073,0.000105,2]
[347796521,1736112636065,-1470.9993,0.000105,2]
[347796522,1736112636077,-3948.47980032,0.000105,2]
[347796523,1736112636091,-4971.72003058,0.000105,2]
[347796538,1736112639584,-0.58352104,0.000105,2]
[347796539,1736112639830,-1561.440015,0.000105,2]
[347796540,1736112639843,-42299.0528284,0.000105,2]
[347796541,1736112639852,-152.01,0.000105,2]
[347796542,1736112639862,-151.04,0.000105,2]
[347796543,1736112639872,-151.7,0.000105,2]
[347796544,1736112639882,-152.81,0.000105,2]
[347796545,1736112639891,-151.44,0.000105,2]
[347796546,1736112639900,-150.97,0.000105,2]
[347796547,1736112639910,-150.12,0.000105,2]
[347796548,1736112639919,-151.03,0.000105,2]
[347796549,1736112639929,-90.83669716,0.000105,2]
[347796554,1736112640501,-250.0,9.035e-05,2]
[347796555,1736112640511,-436.03253807,9.999e-05,2]
[347796556,1736112640532,-63.96746193,9.999e-05,2]
[347796557,1736112640541,-500.0,9.999e-05,2]
[347796558,1736112640551,-356.71,9.999e-05,2]
[347796559,1736112640561,-500.0,0.00010273,2]
[347796560,1736112640571,-500.0,0.00010273,2]
[347796561,1736112640581,-60.03330284,0.000105,2]
[347796562,1736112640591,-150.66,0.000105,2]
[347796563,1736112640601,-151.62,0.000105,2]
[347796564,1736112640611,-500.0,0.00010543,2]
[347796565,1736112640620,-500.0,0.00010543,2]
[347796566,1736112640629,-500.0,0.00010543,2]
[347796567,1736112640638,-500.0,0.00010543,2]
[347796568,1736112640647,-400.34,0.00010543,2]
[347796569,1736112640657,-500.0,0.00010543,2]
[347796570,1736112640668,-500.0,0.00010543,2]
[347796571,1736112640677,-500.0,0.00010543,2]
[347796572,1736112640686,-500.0,0.00010543,2]
[347796573,1736112640696,-500.0,0.00010543,2]
[347796574,1736112640704,-575.77,0.00010543,2]
[347796575,1736112640712,-500.0,0.00010543,2]
[347796576,1736112640721,-500.0,0.00010543,2]
[347796577,1736112640731,-500.0,0.00010543,2]
[347796578,1736112640740,-500.0,0.00010543,2]
[347796579,1736112640749,-500.0,0.00010543,2]
[347796581,1736112640758,-500.0,0.00010543,2]
[347796583,1736112640767,-500.0,0.00010543,2]
[347796584,1736112640778,-500.0,0.00010543,2]
[347796585,1736112640787,-500.0,0.00010543,2]
[347796586,1736112640796,-473.59849788,0.00010543,2]
[347796587,1736112640806,-500.0,0.00010543,2]
[347796588,1736112640815,-500.0,0.00010543,2]
[347796589,1736112640824,-500.0,0.00010543,2]
[347796590,1736112640833,-500.0,0.00010543,2]
[347796591,1736112640842,-500.0,0.00010543,2]
[347796592,1736112640851,-500.0,0.00010543,2]
[347796593,1736112640861,-643.96,0.00010543,2]
[347796595,1736112640870,-298.33,0.00010543,2]
[347796596,1736112640879,-500.0,0.00010543,2]
[347796597,1736112640888,-500.0,0.00010543,2]
[347796598,1736112640897,-500.0,0.00010543,2]
[347796599,1736112640906,-500.0,0.00010543,2]
[347796600,1736112640915,-500.0,0.00010543,2]
[347796601,1736112640925,-500.0,0.00010543,2]
[347796602,1736112640934,-500.0,0.00010543,2]
[347796603,1736112640943,-500.0,0.00010543,2]
[347796604,1736112640951,-500.0,0.00010543,2]
[347796605,1736112640960,-500.0,0.00010543,2]
[347796606,1736112640969,-500.0,0.00010543,2]
[347796607,1736112640978,-500.0,0.00010543,2]
[347796608,1736112640987,-500.0,0.00010543,2]
[347796609,1736112640995,-500.0,0.00010543,2]
[347796610,1736112641004,-500.0,0.00010543,2]
[347796611,1736112641014,-500.0,0.00010543,2]
[347796612,1736112641023,-500.0,0.00010543,2]
[347796613,1736112641033,-500.0,0.00010543,2]
[347796614,1736112641042,-500.0,0.00010543,2]
[347796615,1736112641051,-500.0,0.00010543,2]
[347796616,1736112641060,-500.0,0.00010543,2]
[347796617,1736112641068,-500.0,0.00010543,2]
[347796618,1736112641077,-500.0,0.00010543,2]
[347796619,1736112641086,-500.0,0.00010543,2]
[347796620,1736112641098,-500.0,0.00010543,2]
[347796621,1736112641107,-500.0,0.00010543,2]
[347796622,1736112641116,-500.0,0.00010543,2]
[347796623,1736112641126,-500.0,0.00010543,2]
[347796624,1736112641135,-500.0,0.00010543,2]
[347796625,1736112641144,-500.0,0.00010543,2]
[347796626,1736112641153,-500.0,0.00010543,2]
[347796627,1736112641162,-500.0,0.00010543,2]
[347796628,1736112641172,-500.0,0.00010543,2]
[347796629,1736112641182,-500.0,0.00010543,2]
[347796630,1736112641191,-766.52,0.00010543,2]
[347796631,1736112641200,-500.0,0.00010543,2]
[347796632,1736112641210,-500.0,0.00010543,2]
[347796633,1736112641219,-500.0,0.00010543,2]
[347796634,1736112641228,-500.0,0.00010543,2]
[347796635,1736112641239,-500.0,0.00010543,2]
[347796636,1736112641249,-572.13,0.00010543,2]
[347796637,1736112641259,-500.0,0.00010543,2]
[347796638,1736112641270,-500.0,0.00010543,2]
[347796639,1736112641279,-500.0,0.00010543,2]
[347796640,1736112641288,-500.0,0.00010543,2]
[347796641,1736112641298,-500.0,0.00010543,2]
[347796642,1736112641309,-162.08,0.00010543,2]
[347796643,1736112641320,-162.135959,0.00010543,2]
[347796644,1736112641330,-500.0,0.00010543,2]
[347796645,1736112641339,-795.38,0.00010543,2]
[347796646,1736112641348,-733.76,0.00010543,2]
[347796647,1736112641359,-168.308035,0.00010543,2]
[347796648,1736112641368,-500.0,0.00010543,2]
[347796649,1736112641377,-500.0,0.00010543,2]
[347796650,1736112641388,-198.52,0.00010544,2]
[347796651,1736112641400,-251.08,0.00010544,2]
[347796652,1736112641410,-500.0,0.00010544,2]
[347796653,1736112641422,-500.0,0.00010544,2]
[347796654,1736112641432,-945.9,0.00010544,2]
[347796655,1736112641443,-500.0,0.00010544,2]
[347796656,1736112641453,-500.0,0.00010544,2]
[347796657,1736112641463,-537.91,0.00010544,2]
[347796658,1736112641472,-500.0,0.00010544,2]
[347796659,1736112641481,-1010.82,0.00010544,2]
[347796660,1736112641490,-500.0,0.00010544,2]
[347796661,1736112641499,-152327.15699016,0.00010544,2]
[347796662,1736112641511,-2238.99168339,0.00010544,2]
[347796663,1736112641532,-1827.4623212,0.00010544,2]
[347796664,1736112641542,-4975.51485734,0.00010544,2]
[347796665,1736112641554,-2715.84665235,0.00010544,2]
[347796666,1736112641565,-25018.72729943,0.00010544,2]
[347796667,1736112641576,-809.98594867,0.00010544,2]
[347796668,1736112641587,-7228.80471292,0.00010544,2]
[347796669,1736112641597,-266.79923577,0.00010544,2]
[347796670,1736112641608,-274.176,0.00010544,2]
[347796671,1736112641622,-639.1569699,0.00010544,2]
[347796672,1736112641634,-665.17985081,0.00010544,2]
[347796673,1736112641757,-350.79000003,9.9e-05,2]
[347796674,1736112641772,-489.4,9.9e-05,2]
[347796675,1736112641785,-9679.88349997,9.9e-05,2]
[347796676,1736112641795,-108475.43295127,0.00010544,2]
[347796677,1736112641804,-732.02,0.00010545,2]
[347796678,1736112641813,-500.0,0.00010545,2]
[347796679,1736112641823,-500.0,0.00010545,2]
[347796680,1736112641832,-527.13,0.00010545,2]
[347796681,1736112641841,-753.31,0.00010545,2]
[347796682,1736112641850,-500.0,0.00010545,2]
[347796683,1736112641859,-500.0,0.00010546,2]
[347796684,1736112641868,-500.0,0.00010546,2]
[347796685,1736112641877,-543.87,0.00010547,2]
[347796686,1736112641886,-500.0,0.00010547,2]
[347796687,1736112641895,-500.0,0.00010547,2]
[347796688,1736112641904,-500.0,0.00010547,2]
[347796689,1736112641913,-550.99,0.00010547,2]
[347796690,1736112641922,-500.0,0.00010547,2]
[347796691,1736112641932,-500.0,0.00010547,2]
[347796692,1736112641942,-500.0,0.00010547,2]
[347796693,1736112641952,-500.0,0.00010547,2]
[347796694,1736112641961,-1239.66,0.00010547,2]
[347796695,1736112641971,-500.0,0.00010547,2]
[347796696,1736112641980,-500.0,0.00010547,2]
[347796697,1736112641990,-500.0,0.00010573,2]
[347796698,1736112641999,-347.15733575,0.00010603,2]
[347796699,1736112642008,-347.15733575,0.00010731,2]
[347796700,1736112642017,-150.15,0.00010771,2]
[347796701,1736112642028,-568.62883697,0.00010817,2]
[347796702,1736112642038,-500.0,0.00010817,2]
[347796703,1736112642047,-500.0,0.00010817,2]
[347796704,1736112642057,-500.0,0.00010817,2]
[347796705,1736112642065,-500.0,0.00010817,2]
[347796706,1736112642074,-538.82,0.00010817,2]
[347796707,1736112642083,-500.0,0.00010817,2]
[347796708,1736112642093,-500.0,0.00010817,2]
[347796709,1736112642106,-616.57514197,0.00010817,2]
[347796710,1736112642115,-521.15419302,0.00010817,2]
[347796711,1736112642128,-766.52,0.00010817,2]
[347796712,1736112642139,-500.0,0.00010817,2]
[347796713,1736112642148,-500.0,0.00010817,2]
[347796714,1736112642157,-500.0,0.00010817,2]
[347796715,1736112642167,-500.0,0.00010817,2]
[347796716,1736112642177,-500.0,0.00010817,2]
[347796717,1736112642186,-572.13,0.00010817,2]
[347796718,1736112642197,-500.0,0.00010817,2]
[347796719,1736112642207,-500.0,0.00010817,2]
[347796720,1736112642217,-500.0,0.00010817,2]
[347796721,1736112642228,-500.0,0.00010817,2]
[347796722,1736112642237,-500.0,0.00010817,2]
[347796723,1736112642247,-795.38,0.00010817,2]
[347796724,1736112642257,-733.76,0.00010817,2]
[347796725,1736112642266,-500.0,0.00010817,2]
[347796726,1736112642276,-500.0,0.00010817,2]
[347796727,1736112642285,-491.22165566,0.00010818,2]
[347796728,1736112642295,-173.22,0.00010818,2]
[347796729,1736112642304,-945.9,0.00010818,2]
[347796730,1736112642313,-621.13554728,0.00010818,2]
[347796731,1736112642322,-500.0,0.00010818,2]
[347796732,1736112642333,-537.91,0.00010818,2]
[347796733,1736112642344,-500.0,0.00010818,2]
[347796734,1736112642357,-1010.82,0.00010818,2]
[347796735,1736112642366,-500.0,0.00010818,2]
[347796736,1736112642376,-500.0,0.00010819,2]
[347796737,1736112642386,-500.0,0.00010819,2]
[347796738,1736112642397,-500.0,0.00010819,2]
[347796739,1736112642406,-500.0,0.00010819,2]
[347796740,1736112642415,-500.0,0.00010819,2]
[347796741,1736112642424,-500.0,0.00010819,2]
[347796742,1736112642434,-615.75,0.00010819,2]
[347796743,1736112642443,-500.0,0.00010819,2]
[347796744,1736112642452,-337.17363375,0.00010819,2]
[347796745,1736112642461,-500.0,0.00010819,2]
[347796746,1736112642470,-500.0,0.00010819,2]
[347796747,1736112642479,-500.0,0.00010819,2]
[347796748,1736112642488,-500.0,0.00010819,2]
[347796749,1736112642497,-500.0,0.00010819,2]
[347796750,1736112642507,-500.0,0.00010819,2]
[347796751,1736112642516,-610.48,0.00010819,2]
[347796752,1736112642525,-500.0,0.00010819,2]
[347796753,1736112642537,-500.0,0.00010819,2]
[347796754,1736112642547,-500.0,0.00010819,2]
[347796755,1736112642556,-500.0,0.00010819,2]
[347796756,1736112642566,-500.0,0.00010819,2]
[347796757,1736112642575,-500.0,0.00010819,2]
[347796758,1736112642585,-500.0,0.00010819,2]
[347796759,1736112642595,-500.0,0.00010819,2]
[347796760,1736112642604,-617.98,0.00010819,2]
[347796761,1736112642614,-500.0,0.00010819,2]
[347796762,1736112642624,-500.0,0.00010819,2]
[347796763,1736112642633,-529.53,0.00010819,2]
[347796764,1736112642643,-500.0,0.00010819,2]
[347796765,1736112642652,-500.0,0.00010819,2]
[347796766,1736112642661,-500.0,0.00010819,2]
[347796767,1736112642671,-513.36,0.00010819,2]
[347796768,1736112642680,-500.0,0.00010819,2]
[347796769,1736112642689,-507.2,0.00010819,2]
[347796770,1736112642698,-500.0,0.00010819,2]
[347796771,1736112642708,-500.0,0.00010819,2]
[347796772,1736112642718,-510.04,0.00010819,2]
[347796773,1736112642728,-500.0,0.00010819,2]
[347796774,1736112642737,-500.0,0.00010819,2]
[347796775,1736112642747,-500.0,0.00010819,2]
[347796776,1736112642757,-500.0,0.00010819,2]
[347796777,1736112642765,-594.34,0.00010819,2]
[347796778,1736112642775,-500.0,0.00010819,2]
[347796779,1736112642785,-500.0,0.00010819,2]
[347796780,1736112642794,-500.0,0.00010819,2]
[347796781,1736112642804,-633.48,0.00010819,2]
[347796782,1736112642814,-575.87,0.00010819,2]
[347796783,1736112642823,-500.0,0.00010819,2]
[347796784,1736112642834,-500.0,0.00010819,2]
[347796785,1736112642843,-629.75,0.00010819,2]
[347796786,1736112642853,-500.0,0.00010819,2]
[347796787,1736112642863,-500.0,0.00010819,2]
[347796788,1736112642872,-500.0,0.00010819,2]
[347796789,1736112642881,-500.0,0.00010819,2]
[347796790,1736112642891,-592.62,0.00010819,2]
[347796791,1736112642901,-500.0,0.00010819,2]
[347796792,1736112642910,-500.0,0.00010819,2]
[347796793,1736112642920,-391.41878267,0.00010819,2]
[347796794,1736112642929,-500.0,0.00010819,2]
[347796795,1736112642939,-500.0,0.00010819,2]
[347796796,1736112642948,-500.0,0.00010819,2]
[347796797,1736112642958,-500.0,0.00010819,2]
[347796798,1736112642967,-500.0,0.00010819,2]
[347796800,1736112642976,-500.0,0.00010819,2]
[347796801,1736112642986,-500.0,0.00010819,2]
[347796802,1736112642995,-500.0,0.00010819,2]
[347796804,1736112643004,-500.0,0.00010819,2]
[347796805,1736112643013,-500.0,0.00010819,2]
[347796806,1736112643022,-500.0,0.00010819,2]
[347796807,1736112643032,-500.0,0.00010819,2]
[347796808,1736112643041,-500.0,0.00010819,2]
[347796809,1736112643051,-500.0,0.00010819,2]
[347796811,1736112643060,-500.0,0.00010819,2]
[347796812,1736112643069,-500.0,0.00010819,2]
[347796814,1736112643079,-500.0,0.00010819,2]
[347796817,1736112643088,-500.0,0.00010819,2]
[347796818,1736112643101,-500.0,0.00010819,2]
[347796820,1736112643111,-500.0,0.00010819,2]
[347796821,1736112643120,-500.0,0.00010819,2]
[347796822,1736112643129,-500.0,0.00010819,2]
[347796823,1736112643141,-500.0,0.00010819,2]
[347796824,1736112643151,-500.0,0.00010819,2]
[347796825,1736112643160,-500.0,0.00010819,2]
[347796826,1736112643170,-500.0,0.00010819,2]
[347796827,1736112643180,-500.0,0.00010819,2]
[347796828,1736112643189,-545.48,0.00010819,2]
[347796829,1736112643199,-500.0,0.00010819,2]
[347796830,1736112643209,-500.0,0.00010819,2]
[347796831,1736112643218,-500.0,0.00010819,2]
[347796832,1736112643228,-500.0,0.00010819,2]
[347796833,1736112643238,-500.0,0.00010819,2]
[347796834,1736112643248,-500.0,0.00010819,2]
[347796835,1736112643258,-500.0,0.00010819,2]
[347796836,1736112643267,-500.0,0.00010819,2]
[347796837,1736112643277,-596.68,0.00010819,2]
[347796838,1736112643287,-500.0,0.00010819,2]
[347796839,1736112643297,-500.0,0.00010819,2]
[347796840,1736112643306,-515.55,0.00010819,2]
[347796841,1736112643316,-500.0,0.00010819,2]
[347796842,1736112643326,-500.0,0.00010819,2]
[347796843,1736112643336,-500.0,0.00010819,2]
[347796844,1736112643346,-500.0,0.00010819,2]
[347796845,1736112643356,-500.0,0.00010819,2]
[347796846,1736112643366,-500.0,0.00010819,2]
[347796847,1736112643376,-500.0,0.00010819,2]
[347796848,1736112643385,-500.0,0.00010819,2]
[347796849,1736112643395,-500.0,0.00010819,2]
[347796850,1736112643404,-500.0,0.00010819,2]
[347796851,1736112643414,-500.0,0.00010819,2]
[347796852,1736112643423,-500.0,0.00010819,2]
[347796853,1736112643433,-500.0,0.00010819,2]
[347796854,1736112643444,-500.0,0.00010819,2]
[347796855,1736112643453,-500.0,0.00010819,2]
[347796856,1736112643463,-500.0,0.00010819,2]
[347796857,1736112643472,-500.0,0.00010819,2]
[347796858,1736112643482,-500.0,0.00010819,2]
[347796859,1736112643492,-500.0,0.00010819,2]
[347796860,1736112643502,-500.0,0.00010819,2]
[347796861,1736112643512,-500.0,0.00010819,2]
[347796862,1736112643522,-540.55826794,0.00010819,2]
[347796863,1736112643533,-500.0,0.00010819,2]
[347796864,1736112643543,-500.0,0.00010819,2]
[347796865,1736112643553,-284.90878072,0.00010819,2]
[347796866,1736112643563,-253.74008436,0.00010819,2]
[347796867,1736112643573,-500.0,0.00010819,2]
[347796868,1736112643582,-500.0,0.00010819,2]
[347796869,1736112643593,-500.0,0.00010819,2]
[347796870,1736112643603,-500.0,0.00010819,2]
[347796871,1736112643613,-500.0,0.00010819,2]
[347796872,1736112643623,-500.0,0.00010819,2]
[347796873,1736112643633,-500.0,0.00010819,2]
[347796874,1736112643643,-507.13,0.00010819,2]
[347796875,1736112643653,-500.0,0.00010819,2]
[347796876,1736112643663,-705.99,0.00010819,2]
[347796877,1736112643673,-500.0,0.00010819,2]
[347796878,1736112643683,-500.0,0.00010819,2]
[347796880,1736112643693,-500.0,0.00010819,2]
[347796882,1736112643703,-500.0,0.00010819,2]
[347796884,1736112643713,-500.0,0.00010819,2]
[347796886,1736112643723,-645.75,0.00010819,2]
[347796888,1736112643732,-500.0,0.00010819,2]
[347796890,1736112643741,-500.0,0.00010819,2]
[347796892,1736112643751,-622.05,0.00010819,2]
[347796894,1736112643760,-551.34,0.00010819,2]
[347796896,1736112643770,-500.0,0.00010819,2]
[347796898,1736112643781,-500.0,0.00010819,2]
[347796899,1736112643791,-500.0,0.00010819,2]
[347796900,1736112643801,-500.0,0.00010819,2]
[347796902,1736112643812,-500.0,0.00010819,2]
[347796903,1736112643822,-548.35,0.00010819,2]
[347796904,1736112643832,-500.0,0.00010819,2]
[347796905,1736112643842,-500.0,0.00010819,2]
[347796906,1736112643851,-511.2,0.00010819,2]
[347796907,1736112643861,-500.0,0.00010819,2]
[347796908,1736112643872,-500.0,0.00010819,2]
[347796909,1736112643881,-288.53397082,0.00010819,2]
[347796910,1736112643892,-500.0,0.00010819,2]
[347796911,1736112643902,-500.0,0.00010819,2]
[347796912,1736112643912,-534.96,0.00010819,2]
[347796913,1736112643923,-573.92,0.00010819,2]
[347796914,1736112643933,-500.0,0.00010819,2]
[347796915,1736112643943,-500.0,0.00010819,2]
[347796916,1736112643952,-500.0,0.00010819,2]
[347796917,1736112643962,-500.0,0.00010819,2]
[347796918,1736112643971,-500.0,0.00010819,2]
[347796919,1736112643980,-500.0,0.00010819,2]
[347796920,1736112643990,-500.0,0.00010819,2]
[347796921,1736112644000,-500.0,0.00010819,2]
[347796922,1736112644010,-500.0,0.00010819,2]
[347796923,1736112644020,-500.0,0.00010819,2]
[347796924,1736112644031,-500.0,0.00010819,2]
[347796925,1736112644040,-501.93484108,0.00010819,2]
[347796926,1736112644050,-500.0,0.00010819,2]
[347796927,1736112644060,-500.0,0.00010819,2]
[347796928,1736112644069,-500.0,0.00010819,2]
[347796929,1736112644079,-500.0,0.00010819,2]
[347796930,1736112644089,-500.0,0.00010819,2]
[347796931,1736112644103,-500.0,0.00010819,2]
[347796932,1736112644113,-500.0,0.00010819,2]
[347796933,1736112644124,-500.0,0.00010819,2]
[347796934,1736112644134,-500.0,0.00010819,2]
[347796935,1736112644145,-500.0,0.00010819,2]
[347796936,1736112644155,-500.0,0.00010819,2]
[347796937,1736112644165,-257.24820503,0.00010819,2]
[347796938,1736112644178,-500.0,0.00010819,2]
[347796939,1736112644187,-500.0,0.00010819,2]
[347796940,1736112644197,-573.26,0.00010819,2]
[347796941,1736112644207,-582.83,0.00010819,2]
[347796942,1736112644217,-500.0,0.00010819,2]
[347796943,1736112644226,-500.0,0.00010819,2]
[347796944,1736112644236,-500.0,0.00010819,2]
[347796945,1736112644246,-500.0,0.00010819,2]
[347796946,1736112644256,-500.0,0.00010819,2]
[347796947,1736112644266,-500.0,0.00010819,2]
[347796948,1736112644276,-500.0,0.00010819,2]
[347796949,1736112644285,-500.0,0.00010819,2]
[347796950,1736112644295,-500.0,0.00010819,2]
[347796951,1736112644305,-500.0,0.00010819,2]
[347796952,1736112644315,-500.0,0.00010819,2]
[347796953,1736112644325,-500.0,0.00010819,2]
[347796954,1736112644335,-625.14,0.00010819,2]
[347796955,1736112644345,-500.0,0.00010819,2]
[347796956,1736112644355,-500.0,0.00010819,2]
[347796957,1736112644365,-500.0,0.00010819,2]
[347796958,1736112644375,-602.22,0.00010819,2]
[347796959,1736112644385,-500.0,0.00010819,2]
[347796960,1736112644395,-627.48,0.00010819,2]
[347796961,1736112644405,-500.0,0.00010819,2]
[347796962,1736112644415,-500.0,0.00010819,2]
[347796963,1736112644425,-500.0,0.00010819,2]
[347796964,1736112644435,-500.0,0.00010819,2]
[347796965,1736112644445,-500.0,0.00010819,2]
[347796966,1736112644455,-574.0,0.00010819,2]
[347796967,1736112644466,-500.0,0.00010819,2]
[347796968,1736112644476,-500.0,0.00010819,2]
[347796969,1736112644487,-500.0,0.00010819,2]
[347796970,1736112644497,-607.46,0.00010819,2]
[347796971,1736112644507,-500.0,0.00010819,2]
[347796972,1736112644517,-406.36249434,0.00010819,2]
[347796973,1736112644538,-93.63750566,0.00010819,2]
[347796974,1736112644548,-381.87249434,0.00010819,2]
[347796975,1736112644560,-118.12750566,0.00010819,2]
[347796976,1736112644570,-500.0,0.00010819,2]
[347796977,1736112644580,-500.0,0.00010819,2]